fUST/lending_fUST_20241008
["ID","MTS","AMOUNT","RATE_DAILY","PERIOD"]
[340042492,1728383434752,-1604.958397,0.00031545,7]
[340042493,1728383434763,-1604.958397,0.00031545,7]
[340042494,1728383434775,-1604.958397,0.00031545,7]
[340042495,1728383434784,-151.0,0.00031545,7]
[340042496,1728383434794,-151.0,0.00031545,7]
[340042497,1728383434805,-151.0,0.00031545,7]
[340042498,1728383434814,-1604.958397,0.00031545,7]
[340042499,1728383434825,-1604.958397,0.00031545,7]
[340042500,1728383434834,-1604.958397,0.00031545,7]
[340042501,1728383434844,-333.997646,0.00031545,7]
[340042502,1728383434855,-333.997646,0.00031545,7]
[340042503,1728383434866,-333.997646,0.00031545,7]
[340042504,1728383434876,-151.0,0.00031545,7]
[340042505,1728383434885,-151.0,0.00031545,7]
[340042506,1728383434895,-151.0,0.00031545,7]
[340042507,1728383434904,-333.997646,0.00031545,7]
[340042508,1728383434915,-333.997646,0.00031545,7]
[340042509,1728383434927,-333.997646,0.00031545,7]
[340042510,1728383434938,-151.0,0.00031545,7]
[340042511,1728383434950,-258.13818,0.00031545,7]
[340042512,1728383434962,-151.0,0.00031545,7]
[340042513,1728383434973,-151.0,0.00031545,7]
[340042514,1728383434982,-151.0,0.00031545,7]
[340042515,1728383434992,-732.231778,0.00031545,7]
[340042516,1728383435003,-732.231778,0.00031545,7]
[340042517,1728383435015,-732.231778,0.00031545,7]
[340042518,1728383435025,-151.0,0.00031545,7]
[340042519,1728383435036,-151.0,0.00031545,7]
[340042520,1728383435046,-151.0,0.00031545,7]
[340042521,1728383435057,-732.231778,0.00031545,7]
[340042522,1728383435068,-732.231778,0.00031545,7]
[340042523,1728383435078,-732.231778,0.00031545,7]
[340042524,1728383435090,-155.218383,0.00031545,7]
[340042525,1728383435099,-189.004927,0.00031545,7]
[340042526,1728383435110,-189.004927,0.00031545,7]
[340042527,1728383435120,-189.004927,0.00031545,7]
[340042528,1728383435130,-189.004927,0.00031545,7]
[340042529,1728383435228,-189.004927,0.00031545,7]
[340042530,1728383435239,-189.004927,0.00031545,7]
[340042531,1728383435249,-165.935032,0.00031545,7]
[340042532,1728383435259,-165.935038,0.00031545,7]
[340042533,1728383435269,-176.405319,0.00031545,7]
[340042534,1728383435279,-176.405319,0.00031545,7]
[340042535,1728383435289,-176.405319,0.00031545,7]
[340042536,1728383435299,-176.405319,0.00031545,7]
[340042537,1728383435309,-176.405319,0.00031545,7]
[340042538,1728383435319,-176.405319,0.00031545,7]
[340042539,1728383435329,-31859.0620767,0.00031547,4]
[340042540,1728383435339,-15929.5310384,0.00031547,4]
[340042541,1728383435348,-50077.05441218,0.00031547,4]
[340042577,1728383442718,-581.274,0.000313,2]
[340042578,1728383442728,-500.0,0.0003147,2]
[340042579,1728383442738,-500.0,0.0003147,2]
[340042580,1728383442748,-500.0,0.0003147,2]
[340042581,1728383442757,-500.0,0.0003147,2]
[340042582,1728383442766,-446.34069384,0.0003147,2]
[340042583,1728383442776,-151.0,0.00031472,7]
[340042584,1728383442786,-151.0,0.00031472,7]
[340042585,1728383442796,-151.0,0.00031472,7]
[340042586,1728383442807,-151.0,0.00031472,7]
[340042587,1728383442818,-151.0,0.00031473,7]
[340042588,1728383442828,-151.0,0.00031473,7]
[340042589,1728383442837,-151.0,0.00031473,7]
[340042590,1728383442847,-151.0,0.00031473,7]
[340042591,1728383442857,-589.50619761,0.00031487,2]
[340042592,1728383442867,-500.0,0.00031487,2]
[340042593,1728383442876,-500.0,0.00031487,2]
[340042594,1728383442886,-334.87910854,0.00031487,2]
[340042595,1728383442899,-165.12089146,0.00031487,2]
[340042596,1728383442909,-450.272455,0.00031487,2]
[340042597,1728383442919,-500.0,0.00031487,2]
[340042598,1728383442929,-500.0,0.00031487,2]
[340042599,1728383442939,-500.0,0.00031487,2]
[340042600,1728383442949,-500.0,0.00031487,2]
[340042601,1728383442959,-151.0,0.00031488,7]
[340042602,1728383442969,-151.0,0.00031488,7]
[340042603,1728383442979,-151.0,0.00031488,7]
[340042604,1728383442989,-151.0,0.00031488,7]
[340042605,1728383442998,-151.0,0.00031512,7]
[340042606,1728383443008,-151.0,0.00031512,7]
[340042607,1728383443019,-152.36215,0.00031512,7]
[340042608,1728383443029,-324.5,0.00031525,10]
[340042609,1728383443042,-151.0,0.00031535,7]
[340042610,1728383443052,-151.0,0.00031535,7]
[340042611,1728383443063,-151.0,0.00031535,7]
[340042612,1728383443073,-151.0,0.00031535,7]
[340042613,1728383443082,-119.91629479,0.00031535,7]
[340042614,1728383443095,-31.08370521,0.00031535,7]
[340042615,1728383443104,-151.0,0.00031535,7]
[340042616,1728383443114,-151.0,0.00031538,7]
[340042617,1728383443124,-151.0,0.00031538,7]
[340042618,1728383443133,-151.0,0.00031538,7]
[340042619,1728383443143,-151.0,0.00031538,7]
[340042620,1728383443153,-156.528054,0.00031538,7]
[340042621,1728383443163,-90.63602215,0.00031546,3]
[340042622,1728383443179,-67.45397785,0.00031546,3]
[340042623,1728383443189,-324.12373504,0.00031547,4]
[340042626,1728383445784,-8347.30394929,0.00031404,2]
[340042627,1728383445794,-1472.3956796,0.00031547,4]
[340042628,1728383445805,-11844.55032668,0.00031547,4]
[340042629,1728383445814,-151.0,0.00031548,7]
[340042630,1728383445827,-350.285867,0.00031548,7]
[340042631,1728383445838,-151.0,0.00031548,7]
[340042632,1728383445848,-151.0,0.00031548,7]
[340042633,1728383445857,-840.527158,0.00031548,7]
[340042634,1728383445867,-840.527158,0.00031548,7]
[340042635,1728383445877,-840.527158,0.00031548,7]
[340042636,1728383445887,-840.527158,0.00031548,7]
[340042637,1728383445896,-4159.706438,0.00031548,7]
[340042638,1728383445906,-151.0,0.00031548,7]
[340042639,1728383445916,-4159.706438,0.00031548,7]
[340042640,1728383445929,-275.782557,0.00031548,7]
[340042641,1728383445942,-152.623124,0.00031548,7]
[340042642,1728383445953,-4159.706438,0.00031548,7]
[340042643,1728383445962,-151.0,0.00031548,7]
[340042644,1728383445972,-4159.706438,0.00031548,7]
[340042645,1728383445982,-151.0,0.00031548,7]
[340042646,1728383445994,-151.0,0.00031548,7]
[340042647,1728383446006,-446.576249,0.00031548,7]
[340042648,1728383446017,-151.0,0.00031548,7]
[340042649,1728383446027,-446.576249,0.00031548,7]
[340042650,1728383446039,-446.576249,0.00031548,7]
[340042651,1728383446049,-446.576249,0.00031548,7]
[340042652,1728383446060,-463.651644,0.00031548,7]
[340042653,1728383446070,-463.651644,0.00031548,7]
[340042654,1728383446079,-463.651644,0.00031548,7]
[340042655,1728383446089,-463.651644,0.00031548,7]
[340042656,1728383446099,-151.0,0.00031548,7]
[340042657,1728383446112,-151.0,0.00031548,7]
[340042658,1728383446124,-151.0,0.00031548,7]
[340042659,1728383446135,-152.601946,0.00031548,7]
[340042660,1728383446145,-151.0,0.00031548,7]
[340042661,1728383446155,-151.0,0.00031548,7]
[340042662,1728383446166,-151.0,0.00031548,7]
[340042663,1728383446176,-300.855924,0.00031548,7]
[340042664,1728383446187,-151.0,0.00031548,7]
[340042665,1728383446197,-165.633027,0.00031548,7]
[340042666,1728383446208,-151.0,0.00031548,7]
[340042667,1728383446219,-151.0,0.00031548,7]
[340042668,1728383446229,-158.387943,0.00031548,7]
[340042669,1728383446239,-1604.958397,0.00031548,7]
[340042670,1728383446250,-1604.958397,0.00031548,7]
[340042671,1728383446261,-151.0,0.00031548,7]
[340042672,1728383446273,-151.0,0.00031548,7]
[340042673,1728383446284,-151.0,0.00031548,7]
[340042674,1728383446293,-1604.958397,0.00031548,7]
[340042675,1728383446303,-1604.958397,0.00031548,7]
[340042676,1728383446313,-333.997646,0.00031548,7]
[340042677,1728383446323,-333.997646,0.00031548,7]
[340042678,1728383446332,-333.997646,0.00031548,7]
[340042679,1728383446342,-333.997646,0.00031548,7]
[340042680,1728383446351,-151.0,0.00031548,7]
[340042681,1728383446360,-151.0,0.00031548,7]
[340042682,1728383446370,-151.0,0.00031548,7]
[340042683,1728383446380,-151.0,0.00031548,7]
[340042684,1728383446390,-333.997646,0.00031548,7]
[340042685,1728383446399,-333.997646,0.00031548,7]
[340042686,1728383446409,-333.997646,0.00031548,7]
[340042687,1728383446419,-333.997646,0.00031548,7]
[340042688,1728383446428,-151.0,0.00031548,7]
[340042689,1728383446438,-151.0,0.00031548,7]
[340042690,1728383446447,-151.0,0.00031548,7]
[340042691,1728383446457,-151.0,0.00031548,7]
[340042692,1728383446466,-732.231778,0.00031548,7]
[340042693,1728383446476,-732.231778,0.00031548,7]
[340042694,1728383446485,-732.231778,0.00031548,7]
[340042695,1728383446496,-732.231778,0.00031548,7]
[340042696,1728383446505,-211.518836,0.00031548,7]
[340042697,1728383446515,-732.231778,0.00031548,7]
[340042698,1728383446525,-732.231778,0.00031548,7]
[340042699,1728383446535,-732.231778,0.00031548,7]
[340042700,1728383446545,-732.231778,0.00031548,7]
[340042701,1728383446554,-189.004927,0.00031548,7]
[340042702,1728383446564,-189.004927,0.00031548,7]
[340042703,1728383446573,-189.004927,0.00031548,7]
[340042704,1728383446583,-189.004927,0.00031548,7]
[340042705,1728383446592,-176.405319,0.00031548,7]
[340042706,1728383446602,-176.405319,0.00031548,7]
[340042707,1728383446612,-176.405319,0.00031548,7]
[340042708,1728383446621,-176.405319,0.00031548,7]
[340042709,1728383446631,-176.405319,0.00031548,7]
[340042710,1728383446644,-176.405319,0.00031548,7]
[340042711,1728383446653,-176.405319,0.00031548,7]
[340042712,1728383446663,-176.405319,0.00031548,7]
[340042713,1728383446672,-151.0,0.00031554,7]
[340042714,1728383446683,-151.0,0.00031555,7]
[340042715,1728383446692,-151.0,0.00031555,7]
[340042716,1728383446701,-151.0,0.00031555,7]
[340042717,1728383446712,-151.203725,0.00031555,7]
[340042718,1728383446722,-203.482361,0.00031555,7]
[340042719,1728383446740,-203.482361,0.00031555,7]
[340042720,1728383446751,-151.0,0.00031555,7]
[340042721,1728383446762,-558.31233413,0.00031555,2]
[340042722,1728383446772,-151.0,0.00031555,7]
[340042723,1728383446782,-350.285867,0.00031555,7]
[340042724,1728383446792,-151.0,0.00031556,7]
[340042725,1728383446802,-151.0,0.00031556,7]
[340042726,1728383446817,-151.0,0.00031556,7]
[340042727,1728383446827,-350.285867,0.00031556,7]
[340042728,1728383446837,-350.285867,0.00031556,7]
[340042729,1728383446848,-151.0,0.00031556,7]
[340042730,1728383446858,-151.0,0.00031556,7]
[340042731,1728383446868,-840.527158,0.00031556,7]
[340042732,1728383446878,-840.527158,0.00031556,7]
[340042733,1728383446887,-840.527158,0.00031556,7]
[340042734,1728383446897,-840.527158,0.00031556,7]
[340042735,1728383446906,-4159.706438,0.00031556,7]
[340042736,1728383446915,-4159.706438,0.00031556,7]
[340042737,1728383446925,-151.0,0.00031556,7]
[340042738,1728383446936,-4159.706438,0.00031556,7]
[340042739,1728383446946,-151.0,0.00031556,7]
[340042740,1728383446956,-4159.706438,0.00031556,7]
[340042741,1728383446966,-151.0,0.00031556,7]
[340042742,1728383446977,-224.923618,0.00031556,7]
[340042743,1728383446988,-446.576249,0.00031556,7]
[340042744,1728383446999,-446.576249,0.00031556,7]
[340042745,1728383447009,-446.576249,0.00031556,7]
[340042746,1728383447021,-446.576249,0.00031556,7]
[340042747,1728383447032,-463.651644,0.00031556,7]
[340042748,1728383447042,-463.651644,0.00031556,7]
[340042749,1728383447053,-463.651644,0.00031556,7]
[340042750,1728383447065,-463.651644,0.00031556,7]
[340042751,1728383447076,-151.0,0.00031556,7]
[340042752,1728383447087,-151.0,0.00031556,7]
[340042753,1728383447099,-151.0,0.00031556,7]
[340042754,1728383447111,-151.0,0.00031556,7]
[340042755,1728383447122,-151.0,0.00031556,7]
[340042756,1728383447132,-151.0,0.00031556,7]
[340042757,1728383447144,-1604.958397,0.00031556,7]
[340042758,1728383447155,-1604.958397,0.00031556,7]
[340042759,1728383447167,-1604.958397,0.00031556,7]
[340042760,1728383447178,-1604.958397,0.00031556,7]
[340042761,1728383447188,-1604.958397,0.00031556,7]
[340042762,1728383447199,-1604.958397,0.00031556,7]
[340042763,1728383447210,-333.997646,0.00031556,7]
[340042764,1728383447220,-151.0,0.00031556,7]
[340042765,1728383447230,-333.997638,0.00031556,7]
[340042766,1728383447239,-151.0,0.00031556,7]
[340042767,1728383447251,-732.231778,0.00031556,7]
[340042768,1728383447262,-732.231787,0.00031556,7]
[340042769,1728383447272,-189.004927,0.00031556,7]
[340042770,1728383447282,-189.004927,0.00031556,7]
[340042771,1728383447292,-189.004927,0.00031556,7]
[340042772,1728383447397,-189.004927,0.00031556,7]
[340042773,1728383447409,-189.004927,0.00031556,7]
[340042774,1728383447421,-189.004927,0.00031556,7]
[340042775,1728383447431,-176.405319,0.00031556,7]
[340042776,1728383447440,-176.405323,0.00031556,7]
[340042777,1728383447450,-160.45118955,0.00031556,10]
[340042778,1728383447458,-151.0,0.00031557,7]
[340042779,1728383447468,-151.0,0.00031557,7]
[340042780,1728383447478,-151.0,0.00031557,7]
[340042781,1728383447488,-151.0,0.00031557,7]
[340042782,1728383447499,-151.0,0.00031557,7]
[340042783,1728383447509,-151.0,0.00031557,7]
[340042784,1728383447518,-203.482361,0.00031557,7]
[340042785,1728383447529,-203.482361,0.00031557,7]
[340042786,1728383447540,-151.0,0.00031557,7]
[340042787,1728383447549,-151.0,0.00031557,7]
[340042788,1728383447561,-151.0,0.00031557,7]
[340042789,1728383447573,-350.285867,0.00031557,7]
[340042790,1728383447583,-350.285867,0.00031557,7]
[340042791,1728383447594,-350.285867,0.00031557,7]
[340042792,1728383447603,-350.285867,0.00031557,7]
[340042793,1728383447613,-350.285867,0.00031557,7]
[340042794,1728383447622,-350.285867,0.00031557,7]
[340042795,1728383447633,-350.28586756,0.00031557,7]
[340042796,1728383447645,-151.0,0.00031557,7]
[340042797,1728383447655,-151.0,0.00031557,7]
[340042798,1728383447665,-294.198723,0.00031557,7]
[340042799,1728383447674,-840.527158,0.00031557,7]
[340042800,1728383447684,-840.527158,0.00031557,7]
[340042801,1728383447693,-840.527158,0.00031557,7]
[340042802,1728383447703,-840.527158,0.00031557,7]
[340042803,1728383447712,-840.527158,0.00031557,7]
[340042804,1728383447721,-840.527167,0.00031557,7]
[340042805,1728383447731,-4159.706438,0.00031557,7]
[340042806,1728383447740,-4159.706438,0.00031557,7]
[340042807,1728383447750,-4159.706438,0.00031557,7]
[340042808,1728383447760,-151.0,0.00031557,7]
[340042809,1728383447770,-4159.706438,0.00031557,7]
[340042810,1728383447780,-151.0,0.00031557,7]
[340042811,1728383447792,-4159.706438,0.00031557,7]
[340042812,1728383447804,-151.0,0.00031557,7]
[340042813,1728383447816,-4159.706445,0.00031557,7]
[340042814,1728383447827,-446.576249,0.00031557,7]
[340042815,1728383447839,-446.576249,0.00031557,7]
[340042816,1728383447852,-446.576249,0.00031557,7]
[340042817,1728383447863,-446.576249,0.00031557,7]
[340042818,1728383447872,-446.576249,0.00031557,7]
[340042819,1728383447883,-446.576243,0.00031557,7]
[340042820,1728383447892,-463.651644,0.00031557,7]
[340042821,1728383447902,-463.651644,0.00031557,7]
[340042822,1728383447912,-463.651644,0.00031557,7]
[340042823,1728383447922,-463.651644,0.00031557,7]
[340042824,1728383447932,-463.651644,0.00031557,7]
[340042825,1728383447943,-463.651653,0.00031557,7]
[340042826,1728383447952,-222.189272,0.00031558,7]
[340042827,1728383447962,-151.0,0.00031558,7]
[340042828,1728383447971,-151.0,0.00031558,7]
[340042829,1728383447981,-151.0,0.00031558,7]
[340042830,1728383447990,-151.974423,0.00031558,7]
[340042831,1728383448001,-151.0,0.00031558,7]
[340042832,1728383448011,-151.0,0.00031558,7]
[340042833,1728383448021,-203.482361,0.00031558,7]
[340042834,1728383448030,-203.482361,0.00031558,7]
[340042835,1728383448039,-203.482361,0.00031558,7]
[340042836,1728383448048,-203.482361,0.00031558,7]
[340042837,1728383448058,-203.482361,0.00031558,7]
[340042838,1728383448068,-203.482361,0.00031558,7]
[340042839,1728383448078,-151.0,0.00031558,7]
[340042840,1728383448088,-151.0,0.00031558,7]
[340042841,1728383448098,-151.0,0.00031558,7]
[340042842,1728383448108,-1000.0,0.00031566,120]
[340042843,1728383448117,-151.0,0.00031567,7]
[340042844,1728383448127,-151.0,0.00031567,7]
[340042845,1728383448136,-151.0,0.00031567,7]
[340042846,1728383448145,-151.0,0.00031567,7]
[340042847,1728383448156,-151.0,0.00031567,7]
[340042848,1728383448169,-151.0,0.00031567,7]
[340042849,1728383448179,-152.007207,0.00031567,7]
[340042850,1728383448188,-151.0,0.00031567,7]
[340042851,1728383448198,-151.0,0.00031567,7]
[340042852,1728383448208,-151.0,0.00031567,7]
[340042853,1728383448217,-151.0,0.00031567,7]
[340042854,1728383448227,-152.858791,0.00031567,7]
[340042855,1728383448236,-151.0,0.00031567,7]
[340042856,1728383448245,-151.0,0.00031567,7]
[340042857,1728383448254,-151.0,0.00031567,7]
[340042858,1728383448264,-151.0,0.00031567,7]
[340042859,1728383448278,-151.0,0.00031567,7]
[340042860,1728383448288,-151.0,0.00031567,7]
[340042861,1728383448298,-151.0,0.00031567,7]
[340042862,1728383448306,-151.0,0.00031567,7]
[340042863,1728383448316,-164.46,0.00031567,7]
[340042864,1728383448325,-151.0,0.00031567,7]
[340042865,1728383448335,-151.0,0.00031567,7]
[340042866,1728383448344,-151.0,0.00031567,7]
[340042867,1728383448355,-293.119231,0.00031567,7]
[340042868,1728383448364,-203.482361,0.00031567,7]
[340042869,1728383448374,-203.482361,0.00031567,7]
[340042870,1728383448384,-203.482361,0.00031567,7]
[340042871,1728383448394,-203.482361,0.00031567,7]
[340042872,1728383448404,-203.482361,0.00031567,7]
[340042873,1728383448414,-203.482361,0.00031567,7]
[340042874,1728383448424,-203.482361,0.00031567,7]
[340042875,1728383448433,-203.482361,0.00031567,7]
[340042876,1728383448442,-203.482361,0.00031567,7]
[340042877,1728383448451,-203.482363,0.00031567,7]
[340042878,1728383448461,-151.0,0.00031567,7]
[340042879,1728383448471,-151.0,0.00031567,7]
[340042880,1728383448480,-151.0,0.00031567,7]
[340042881,1728383448491,-151.0,0.00031567,7]
[340042882,1728383448500,-231.47627,0.00031567,7]
[340042883,1728383448510,-151.0,0.00031568,7]
[340042884,1728383448519,-259.727787,0.00031568,7]
[340042885,1728383448529,-151.0,0.00031568,7]
[340042886,1728383448539,-151.0,0.00031568,7]
[340042887,1728383448548,-151.0,0.00031568,7]
[340042888,1728383448557,-151.0,0.00031568,7]
[340042889,1728383448567,-151.0,0.00031577,7]
[340042890,1728383448577,-420.0,0.00031595,2]
[340042891,1728383448587,-1371.0,0.00031597,42]
[340042892,1728383448596,-150.112233,0.000316,6]
[340042893,1728383448607,-150.112233,0.000316,9]
[340042894,1728383448617,-150.112233,0.000316,5]
[340042895,1728383448627,-150.112233,0.000316,6]
[340042896,1728383448641,-150.112233,0.000316,5]
[340042897,1728383448652,-150.112233,0.000316,10]
[340042898,1728383448662,-150.112233,0.000316,7]
[340042899,1728383448672,-150.112233,0.000316,7]
[340042900,1728383448683,-150.112233,0.000316,7]
[340042901,1728383448694,-150.112233,0.000316,7]
[340042902,1728383448705,-150.112233,0.000316,8]
[340042903,1728383448716,-150.112233,0.000316,5]
[340042904,1728383448727,-150.112233,0.000316,5]
[340042905,1728383448736,-150.112233,0.000316,5]
[340042906,1728383448746,-150.112233,0.000316,9]
[340042907,1728383448756,-150.112233,0.000316,6]
[340042908,1728383448767,-150.112233,0.000316,6]
[340042909,1728383448776,-150.112233,0.000316,6]
[340042910,1728383448786,-150.112233,0.000316,6]
[340042911,1728383448796,-150.112233,0.000316,9]
[340042912,1728383448889,-150.112233,0.000316,8]
[340042913,1728383448899,-1343.89143382,0.00031604,2]
[340042914,1728383448910,-501.34202644,0.00031629,12]
[340042915,1728383448920,-1870.65,0.00031664,7]
[340042916,1728383448931,-150.112233,0.000317,8]
[340042917,1728383448941,-150.112233,0.000317,10]
[340042918,1728383448952,-150.112233,0.000317,10]
[340042919,1728383448962,-150.112233,0.000317,7]
[340042920,1728383448972,-150.112233,0.000317,6]
[340042921,1728383448983,-150.112233,0.000317,7]
[340042922,1728383448992,-150.112233,0.000317,6]
[340042923,1728383449004,-150.112233,0.000317,6]
[340042924,1728383449014,-422275.4233,0.00031721,30]
[340042925,1728383449025,-500.0,0.00031773,5]
[340042926,1728383449035,-600.5241251,0.00031773,5]
[340042927,1728383449044,-213.6327787,0.00031781,2]
[340042928,1728383449054,-306.0,0.00031781,2]
[340042929,1728383449065,-420.6284941,0.00031781,2]
[340042930,1728383449074,-1000.0,0.0003184,120]
[340042931,1728383449084,-1870.65,0.00031855,7]
[340042932,1728383449094,-1870.65,0.00032047,7]
[340042933,1728383449103,-1000.0,0.00032114,120]
[340042934,1728383449113,-1870.65,0.00032239,7]
[340042935,1728383449124,-170.715,0.00032296,2]
[340042936,1728383449133,-214.535,0.00032296,2]
[340042937,1728383449143,-250.0,0.00032296,2]
[340042938,1728383449153,-156.737,0.00032296,2]
[340042939,1728383449165,-251.557,0.00032296,2]
[340042940,1728383449175,-1000.0,0.00032388,120]
[340042941,1728383449186,-1870.65,0.00032431,7]
[340042942,1728383449196,-1870.65,0.00032623,7]
[340042943,1728383449206,-1111.0,0.00032641,120]
[340042944,1728383449216,-1000.0,0.00032662,120]
[340042945,1728383449226,-1870.65,0.00032814,7]
[340042946,1728383449237,-632.34,0.00032833,3]
[340042947,1728383449247,-316.18,0.00032916,3]
[340042948,1728383449257,-1000.0,0.00032936,120]
[340042949,1728383449267,-3090.0,0.00033,5]
[340042950,1728383449278,-1870.65,0.00033006,7]
[340042951,1728383449288,-500.53933491,0.00033142,5]
[340042952,1728383449298,-1870.65,0.00033198,7]
[340042953,1728383449310,-1000.0,0.0003321,120]
[340042954,1728383449322,-1870.65,0.0003339,7]
[340042955,1728383449332,-1000.0,0.00033484,120]
[340042956,1728383449343,-1870.65,0.00033581,7]
[340042957,1728383449355,-200.0,0.0003369,29]
[340042958,1728383449365,-1000.0,0.00033758,120]
[340042959,1728383449375,-1870.65,0.00033773,7]
[340042960,1728383449386,-1870.65,0.00033965,7]
[340042961,1728383449396,-1000.0,0.00034032,120]
[340042962,1728383449406,-1870.65,0.00034157,7]
[340042963,1728383449417,-150.0,0.000343,2]
[340042964,1728383449426,-525.0,0.000343,2]
[340042965,1728383449435,-1000.0,0.00034306,120]
[340042966,1728383449445,-1870.65,0.00034349,7]
[340042967,1728383449456,-247.94064537,0.00034488,2]
[340042968,1728383449467,-1870.65,0.0003454,7]
[340042969,1728383449477,-1000.0,0.0003458,120]
[340042970,1728383449488,-1870.65,0.00034732,7]
[340042971,1728383449498,-1000.0,0.00034854,120]
[340042972,1728383449507,-299.7024921,0.00034907,2]
[340042973,1728383449516,-110965.44147518,0.00034907,2]
[340042974,1728383449526,-1870.65,0.00034924,7]
[340042975,1728383449537,-1870.65,0.00035116,7]
[340042976,1728383449547,-1000.0,0.00035128,120]
[340042977,1728383449557,-150.0,0.00035296,2]
[340042978,1728383449568,-150.0,0.00035296,2]
[340042979,1728383449577,-150.0,0.00035296,2]
[340042980,1728383449586,-150.0,0.00035296,2]
[340042981,1728383449595,-1870.65,0.00035307,7]
[340042982,1728383449605,-301.302353,0.00035361,120]
[340042983,1728383449614,-1369.09586368,0.00035361,120]
[340042984,1728383449624,-1000.0,0.00035361,120]
[340042985,1728383449637,-1000.0,0.00035402,120]
[340042986,1728383449648,-1870.65,0.00035499,7]
[340042987,1728383449659,-1000.0,0.00035676,120]
[340042988,1728383449669,-1870.65,0.00035691,7]
[340042989,1728383449680,-320.0,0.0003587,33]
[340042990,1728383449689,-1870.88321453,0.00035883,7]
[340042991,1728383449700,-1000.0,0.0003595,120]
[340042992,1728383449712,-25109.76356988,0.00036,30]
[340042993,1728383449721,-1043.31179573,0.00036224,120]
[340042994,1728383449731,-432.59386616,0.00036336,7]
[340042995,1728383449742,-306.0,0.00036575,2]
[340042996,1728383449751,-2152.65631744,0.00036579,2]
[340042997,1728383449761,-150.0,0.000373,2]
[340042998,1728383449770,-525.0,0.000373,2]
[340042999,1728383449779,-1504.0,0.00037457,3]
[340043000,1728383449789,-5000.0,0.000375,50]
[340043001,1728383449798,-551.67469837,0.00038,14]
[340043002,1728383449808,-762.19279418,0.00038183,21]
[340043003,1728383449819,-150.0,0.00038296,2]
[340043004,1728383449828,-150.0,0.00038296,2]
[340043005,1728383449839,-15477.9176627,0.00038328,30]
[340043006,1728383449848,-307.2167757,0.00038356,2]
[340043007,1728383449858,-157.4884242,0.00039151,2]
[340043008,1728383449868,-5000.0,0.00039605,4]
[340043009,1728383449878,-2000.0,0.0004,40]
[340043010,1728383449888,-602.08,0.0004,60]
[340043011,1728383449897,-1000.0,0.0004,30]
[340043012,1728383449909,-455.963262,0.0004,2]
[340043013,1728383449920,-17113.13711518,0.0004,120]
[340043014,1728383449929,-656.57144862,0.00040031,30]
[340043015,1728383449940,-1460.12397694,0.00040274,2]
[340043016,1728383449951,-150.0,0.000403,2]
[340043017,1728383449960,-525.0,0.000403,2]
[340043018,1728383449970,-150.233965,0.000405,2]
[340043019,1728383449979,-2000.0,0.00041,41]
[340043020,1728383449990,-1323.47,0.00041095,120]
[340043021,1728383449999,-1000.0,0.00041095,120]
[340043022,1728383450009,-1008.92263742,0.00041369,120]
[340043023,1728383450020,-150.0,0.000415,2]
[340043024,1728383450032,-965.0140904,0.00041528,2]
[340043025,1728383450041,-1323.47,0.00041643,120]
[340043026,1728383450051,-600.0,0.00041798,2]
[340043027,1728383450060,-291.00346753,0.00041879,14]
[340043028,1728383450071,-2000.0,0.00042,42]